bitfinex-derivatives/quotes_ETHF0:USTF0_20250531
["timestamp","ask_amount","ask_price","bid_price","bid_amount"]
[1748699077657,4.7695,2532.1,2532.0,2.04203]
[1748699079149,0.78956,2531.9,2531.8,1.45818]
[1748699079850,0.78956,2531.9,2531.8,2.79368]
[1748699080053,0.78955,2532.0,2531.9,0.78953]
[1748699080248,0.78952,2532.1,2532.0,0.78953]
[1748699080451,0.78949,2532.2,2532.1,0.78947]
[1748699080652,4.76949,2532.2,2532.1,0.78947]
[1748699080847,3.98,2532.2,2532.1,0.86102339]
[1748699081159,4.76946,2532.2,2532.1,0.86102339]
[1748699081345,3.98,2532.2,2532.1,0.86102339]
[1748699081551,3.2078,2532.7,2532.1,5.07155339]
[1748699081755,7.1888,2532.7,2532.6,0.78934]
[1748699081956,3.2078,2532.7,2532.6,0.78934]
[1748699084861,0.00591809,2532.8,2532.7,0.78931]
[1748699085864,0.79519809,2532.8,2532.7,0.78931]
[1748699086057,0.00591809,2532.8,2532.7,2.04141]
[1748699086766,0.79519809,2532.8,2532.7,2.04141]
[1748699087061,0.00591809,2532.8,2532.7,2.04141]
[1748699088662,0.78931,2532.7,2532.6,1.43732]
[1748699090264,0.78931,2532.7,2532.6,0.648]
[1748699090562,0.78931,2532.7,2532.6,1.43732]
[1748699090766,3.98,2532.7,2532.4,1.3155]
[1748699091067,0.78937,2532.5,2532.4,1.3155]
[1748699091269,0.78943,2532.3,2532.2,1.42514]
[1748699091668,4.76943,2532.3,2532.2,0.78947]
[1748699091863,0.78949,2532.2,2532.1,0.78948]
[1748699092064,0.7895,2532.1,2532.0,5.87]
[1748699092466,2.13559,2532.2,2532.1,0.7895]
[1748699094273,4.76946,2532.3,2532.2,0.78947]
[1748699094874,0.78948,2532.2,2532.1,0.78948]
[1748699096673,6.13446,2532.3,2532.2,0.78947]
[1748699096873,6.13146,2532.3,2532.2,0.78947]
[1748699101475,0.7895,2532.2,2532.0,1.8727]
[1748699101678,0.7895,2532.1,2532.0,2.6622]
[1748699104078,3.977,2532.2,2532.1,0.7895]
[1748699104279,3.977,2532.2,2532.1,2.0944]
[1748699104581,0.78947,2532.2,2532.1,2.0944]
[1748699104784,7.1848,2532.4,2532.3,0.78943]
[1748699105278,7.9742,2532.4,2532.3,0.78943]
[1748699107978,0.78943,2532.3,2532.2,2.09436]
[1748699108885,4.76643,2532.4,2532.3,0.78943]
[1748699109087,3.977,2532.4,2532.3,2.09823]
[1748699109288,0.98679,2532.5,2532.4,0.7894]
[1748699109483,0.1974,2532.5,2532.4,2.0982]
[1748699110587,0.98677,2532.5,2532.4,2.0982]
[1748699110789,0.1974,2532.5,2532.4,2.0982]
[1748699110985,0.98677,2532.5,2532.4,2.0982]
[1748699111286,0.1974,2532.5,2532.4,2.0982]
[1748699111482,0.98677,2532.5,2532.4,2.0982]
[1748699112288,0.1974,2532.5,2532.4,2.0982]
[1748699120096,0.1974,2532.5,2532.4,3.4266]
[1748699120493,0.1974,2532.5,2532.4,3.49815339]
[1748699128910,0.19331973,2532.5,2532.4,3.49815339]
[1748699129113,0.78933,2532.7,2532.6,0.78934]
[1748699129515,3.98291809,2532.8,2532.7,0.78931]
[1748699130318,0.00591809,2532.8,2532.7,0.78931]
[1748699130819,0.79522809,2532.8,2532.7,0.78931]
[1748699133718,0.1974,2532.9,2532.8,0.78928]
[1748699134026,0.98665,2532.9,2532.8,5.30588]
[1748699134217,0.1974,2532.9,2532.8,5.30588]
[1748699134412,0.98665,2532.9,2532.8,5.30588]
[1748699135325,0.1974,2532.9,2532.8,5.30588]
[1748699136015,0.98665,2532.9,2532.8,5.30588]
[1748699136221,2.23325,2532.9,2532.8,3.99708]
[1748699137626,2.23325,2532.9,2532.8,3.2078]
[1748699137829,0.78928,2532.8,2532.7,0.07155339]
[1748699138130,5.29018,2532.8,2532.7,0.07155339]
[1748699138730,28.55318,2532.8,2532.7,0.07155339]
[1748699139233,0.78931,2532.7,2532.6,0.00591809]
[1748699139528,0.78946,2532.2,2532.1,4.71682474]
[1748699139916,0.78946,2532.2,2532.1,3.92734474]
[1748699140529,1.3085,2532.4,2532.0,0.7895]
[1748699140530,0.78949,2532.1,2532.0,0.7895]
[1748699140730,1.45389,2532.1,2532.0,0.7895]
[1748699142929,0.78953,2532.0,2531.9,5.1531]
[1748699143238,0.78953,2532.0,2531.9,3.2078]
[1748699143533,2.04723,2532.0,2531.9,3.2078]
[1748699144128,2.04723,2532.0,2531.9,3.99736]
[1748699144329,2.04723,2532.0,2531.9,3.2078]
[1748699144826,2.04723,2532.0,2531.9,3.99736]
[1748699148529,2.04723,2532.0,2531.9,3.2078]
[1748699149933,2.04723,2532.0,2531.9,3.27935339]
[1748699150332,2.04723,2532.0,2531.9,4.06891339]
[1748699153035,2.04723,2532.0,2531.9,3.27935339]
[1748699153829,2.04723,2532.0,2531.9,0.07155339]
[1748699156439,0.78971,2531.4,2531.3,3.8435]
[1748699156839,0.78971,2531.4,2531.3,4.63324]
[1748699157236,0.78971,2531.4,2531.3,3.8435]
[1748699157439,0.98721,2531.4,2531.3,4.63324]
[1748699157734,0.1975,2531.4,2531.3,4.63324]
[1748699161132,0.98721,2531.4,2531.3,4.63324]
[1748699161332,0.98721,2531.4,2531.3,3.8435]
[1748699161743,0.98721,2531.4,2531.3,5.1763]
[1748699162646,0.98721,2531.4,2531.3,5.96604]
[1748699162947,0.98721,2531.4,2531.3,5.1763]
[1748699163538,0.98721,2531.4,2531.3,5.96604]
[1748699164146,0.1975,2531.4,2531.3,5.96604]
[1748699165145,0.1975,2531.4,2531.3,6.03759339]
[1748699166244,0.98721,2531.4,2531.3,3.27935339]
[1748699166547,0.98721,2531.4,2531.3,0.07155339]
[1748699168351,0.78993,2530.7,2530.6,2.97470474]
[1748699168542,26.22773,2530.7,2530.6,2.97470474]
[1748699169254,7.96573,2530.7,2530.6,2.97470474]
[1748699169648,8.4625,2530.7,2530.4,1.9149]
[1748699169838,0.78999,2530.5,2530.4,0.621]
[1748699170041,0.79012,2530.1,2529.9,7.79007932]
[1748699170245,0.79007,2530.2,2529.9,6.99992932]
[1748699170542,3.97491809,2530.3,2529.9,3.8544]
[1748699170751,0.79011,2530.1,2529.9,3.8544]
[1748699171146,5.32131809,2530.3,2529.9,3.8544]
[1748699171147,0.79013,2530.0,2529.9,3.8544]
[1748699171345,0.79013,2530.0,2529.9,5.1052]
[1748699171740,0.79013,2530.0,2529.9,4.4586]
[1748699171948,0.79013,2530.0,2529.9,3.2078]
[1748699172449,0.79022,2529.7,2529.6,3.14552932]
[1748699172647,0.7902,2529.8,2529.6,3.93577932]
[1748699172843,0.7902,2529.8,2529.7,1.2508]
[1748699173545,3.969,2529.9,2529.7,1.2508]
[1748699173746,1.3464,2530.0,2529.7,1.2508]
[1748699173947,0.79019,2529.8,2529.7,1.2508]
[1748699174248,0.00591809,2530.3,2529.7,4.4586]
[1748699174451,0.79007,2530.2,2530.0,0.79011]
[1748699175151,0.79007,2530.2,2530.1,1.2545]
[1748699175352,0.79007,2530.2,2530.1,2.0446]
[1748699175545,0.79595809,2530.3,2530.1,1.2545]
[1748699175846,0.79007,2530.2,2530.1,1.2545]
[1748699176840,0.00591809,2530.3,2530.1,1.2545]
[1748699177046,0.79007,2530.2,2530.1,1.2545]
[1748699179057,0.00591809,2530.3,2529.7,3.2078]
[1748699179250,1.30891809,2530.3,2529.9,0.79014]
[1748699179551,0.79013,2530.0,2529.9,0.79015]
[1748699179754,3.28402809,2530.3,2529.8,1.316]
[1748699179939,0.79016,2529.9,2529.8,2.10618]
[1748699180144,0.79016,2529.9,2529.8,1.316]
[1748699180442,3.2078,2530.1,2529.6,2.10034]
[1748699180647,0.79022,2529.8,2529.7,0.79022]
[1748699180848,0.79028,2529.6,2529.5,0.79028]
[1748699181451,3.97,2529.6,2529.0,4.5179]
[1748699181652,3.2078,2529.5,2529.1,1.97603]
[1748699181951,0.79026,2529.6,2529.5,0.79026]
[1748699182144,3.2078,2529.8,2529.2,1.97593]
[1748699182145,2.17095,2529.8,2529.2,1.97593]
[1748699182453,0.00591809,2530.3,2530.1,0.07155339]
[1748699182647,0.00591809,2530.3,2530.2,1.3418]
[1748699182648,0.79596809,2530.3,2530.2,1.3418]
[1748699182858,0.79007,2530.2,2530.1,0.07155339]
[1748699183047,0.00591809,2530.3,2530.2,0.79007]
[1748699184459,0.79597809,2530.3,2530.1,2.20343339]
[1748699184659,0.79597809,2530.3,2530.2,0.79007]
[1748699184955,0.99357809,2530.3,2530.2,0.79007]
[1748699185263,0.79007,2530.2,2530.1,0.07155339]
[1748699185454,2.13807,2530.2,2530.1,0.07155339]
[1748699186156,6.84867,2530.2,2530.1,0.07155339]
[1748699186458,7.46587,2530.2,2530.1,0.07155339]
[1748699186851,3.42887,2530.2,2530.1,0.07155339]
[1748699187053,7.46687,2530.2,2530.1,0.07155339]
[1748699187352,12.46687,2530.2,2530.1,0.07155339]
[1748699188651,3.42887,2530.2,2530.1,0.07155339]
[1748699188851,4.82807,2530.2,2530.1,0.07155339]
[1748699189554,6.19767,2530.2,2530.1,0.07155339]
[1748699189757,0.20351809,2530.3,2530.1,0.07155339]
[1748699189956,0.79007,2530.2,2530.1,0.07155339]
[1748699193456,1.45347,2530.2,2530.1,0.07155339]
[1748699194052,0.79019,2529.8,2529.7,1.9376]
[1748699195158,0.79019,2529.8,2529.7,0.6268]
[1748699195465,0.79029,2529.5,2529.4,3.2078]
[1748699195664,4.038,2529.5,2529.1,7.14372932]
[1748699195858,0.79038,2529.2,2529.1,6.35332932]
[1748699196662,1.2695,2529.4,2529.1,3.2078]
[1748699196962,0.79037,2529.3,2529.2,0.79038]
[1748699197164,0.79038,2529.2,2529.1,3.2078]
[1748699197564,0.79038,2529.2,2529.1,3.99821]
[1748699197859,0.79038,2529.2,2529.1,3.2078]
[1748699198066,0.79041,2529.1,2529.0,1.9008]
[1748699198762,0.79041,2529.1,2529.0,2.69124]
[1748699198957,0.79041,2529.1,2529.0,1.9008]
[1748699199361,0.79041,2529.1,2529.0,2.69124]
[1748699199668,0.79041,2529.1,2529.0,1.9008]
[1748699200565,0.79041,2529.1,2529.0,2.69124]
[1748699203166,0.79041,2529.1,2529.0,0.6229]
[1748699203375,1.97614,2529.0,2528.5,3.8371]
[1748699203673,0.79052,2528.8,2528.7,0.79051]
[1748699203970,4.04492991,2529.0,2528.6,1.2411]
[1748699204171,0.79053,2528.8,2528.7,0.79052]
[1748699204676,4.04492991,2529.0,2528.6,1.2411]
[1748699205262,0.79052,2528.8,2528.7,0.79052]
[1748699205461,0.79054,2528.7,2528.6,2.03165]
[1748699205669,0.79054,2528.7,2528.6,1.2411]
[1748699206072,0.79053,2528.8,2528.6,2.03164]
[1748699206372,0.79053,2528.8,2528.7,1.2411]
[1748699209674,0.79053,2528.8,2528.7,1.31265339]
[1748699210077,0.79053,2528.8,2528.7,2.10319339]
[1748699210374,4.039,2528.8,2528.7,1.31265339]
[1748699210966,4.82951,2528.8,2528.7,2.10316339]
[1748699211165,5.02721,2528.8,2528.7,2.10316339]
[1748699211978,0.98821,2528.8,2528.7,2.10316339]
[1748699212177,0.1977,2528.8,2528.7,2.10316339]
[1748699214576,0.9882,2528.8,2528.7,2.10316339]
[1748699215979,0.1977,2528.8,2528.7,2.10316339]
[1748699216171,0.9882,2528.8,2528.7,2.10316339]
[1748699216672,0.9882,2528.8,2528.7,1.31265339]
[1748699216977,0.9882,2528.8,2528.7,2.10319339]
[1748699217373,0.9882,2528.8,2528.7,1.31265339]
[1748699217587,8.205,2528.8,2528.7,0.07155339]
[1748699218576,0.79063,2528.4,2528.3,0.6595]
[1748699220179,0.79063,2528.4,2528.3,1.45016]
[1748699220380,10.98559,2528.4,2527.8,3.99859]
[1748699220679,0.79079,2527.9,2527.8,3.2078]
[1748699220974,3.2078,2528.2,2527.7,3.14552932]
[1748699220975,4.009,2528.0,2527.7,3.14552932]
[1748699221277,4.009,2528.0,2527.7,3.93635932]
[1748699221478,0.7908,2527.9,2527.7,3.14552932]
[1748699221873,0.79079,2527.9,2527.8,1.2781]
[1748699222275,4.009,2528.0,2527.6,0.79086]
[1748699222475,0.79085,2527.7,2527.6,2.06896]
[1748699222675,5.3414,2528.0,2527.6,2.06896]
[1748699222870,0.79085,2527.8,2527.6,1.2781]
[1748699223070,0.79088,2527.6,2527.5,0.15596936]
[1748699223681,15.64328,2527.6,2527.5,0.15596936]
[1748699224882,0.79097,2527.3,2527.2,3.14552932]
[1748699225087,0.00592991,2527.5,2527.2,3.14552932]
[1748699225284,18.376,2527.4,2527.2,0.79098]
[1748699225477,0.00592991,2527.5,2527.3,1.8777]
[1748699225672,0.79684991,2527.5,2527.3,1.8777]
[1748699225877,0.00592991,2527.5,2527.4,0.79094]
[1748699226078,0.00592991,2527.5,2527.4,2.70704]
[1748699226277,0.00592991,2527.5,2527.4,5.91484]
[1748699226580,0.00592991,2527.5,2527.4,10.91484]
[1748699226981,21.5938,2528.2,2527.9,0.79078]
[1748699226982,3.2078,2528.2,2527.9,0.79078]
[1748699227182,0.79077,2528.1,2528.0,1.2443]
[1748699228183,3.2078,2528.2,2528.1,0.79075]
[1748699228381,0.00592991,2528.3,2528.1,0.6442]
[1748699228582,0.79662991,2528.3,2528.2,1.2658]
[1748699233992,0.00592991,2528.3,2528.2,2.05651]
[1748699234285,0.79660991,2528.3,2528.2,2.05651]
[1748699234486,0.00592991,2528.3,2528.2,1.2658]
[1748699234687,0.79660991,2528.3,2528.2,2.05651]
[1748699234882,0.00592991,2528.3,2528.2,2.05651]
[1748699235489,0.00592991,2528.3,2528.2,7.05651]
[1748699236187,0.00592991,2528.3,2528.2,11.06751]
[1748699237089,0.1977,2528.8,2528.7,0.79056]
[1748699237688,0.1977,2528.8,2528.7,2.11726]
[1748699237992,0.1977,2528.8,2528.7,2.78736]
[1748699238790,0.1977,2528.8,2528.7,7.78736]
[1748699239383,0.00592991,2529.0,2528.9,0.7905]
[1748699239585,0.00592991,2529.0,2528.9,3.9983]
[1748699239886,0.00592991,2529.0,2528.9,8.9983]
[1748699240986,3.2078,2530.0,2529.1,1.97602]
[1748699241190,0.79021,2529.8,2529.7,0.79022]
[1748699241386,0.9878,2529.9,2529.8,0.79021]
[1748699242093,0.79021,2529.8,2529.7,1.2567]
[1748699242291,0.79021,2529.8,2529.7,2.04695]
[1748699242487,0.1976,2529.9,2529.7,1.2567]
[1748699242698,0.79021,2529.8,2529.7,2.04694]
[1748699242884,0.9878,2529.9,2529.8,0.79021]
[1748699243085,0.9878,2529.9,2529.8,2.08621]
[1748699243389,0.9878,2529.9,2529.8,1.296]
[1748699244092,0.9878,2529.9,2529.8,2.08621]
[1748699244586,0.9878,2529.9,2529.8,1.296]
[1748699244984,0.79025,2529.7,2529.6,3.2078]
[1748699245190,0.79042,2529.2,2529.1,0.79042]
[1748699245385,0.7904,2529.2,2529.1,0.79041]
[1748699245693,0.79038,2529.3,2529.2,0.79038]
[1748699247386,0.79041,2529.2,2529.1,0.79041]
[1748699247595,3.89953,2529.6,2529.0,1.296]
[1748699247596,0.79043,2529.1,2529.0,2.08644]
[1748699247789,1.97581,2529.5,2529.1,0.79042]
[1748699247991,0.79043,2529.2,2529.1,0.79042]
[1748699248396,0.79039,2529.3,2529.2,0.79039]
[1748699249498,0.79042,2529.2,2529.1,0.79041]
[1748699249899,0.79043,2529.1,2529.0,2.08645]
[1748699250399,0.79042,2529.2,2529.1,0.79042]
[1748699250599,0.79039,2529.3,2529.2,0.79038]
[1748699253294,0.79043,2529.2,2529.1,0.79041]
[1748699253499,0.79039,2529.3,2529.2,0.79038]
[1748699255201,0.79043,2529.2,2529.1,0.79041]
[1748699255498,0.79046,2529.1,2529.0,0.79044]
[1748699256400,0.79043,2529.2,2529.1,0.79041]
[1748699257002,3.2078,2529.4,2529.3,0.79037]
[1748699257596,0.79028,2529.6,2529.5,0.79031]
[1748699258197,3.99807,2529.7,2529.6,0.79028]
[1748699258404,3.2078,2529.7,2529.6,0.79028]
[1748699258901,3.99805,2529.7,2529.6,0.79028]
[1748699259408,3.2078,2529.7,2529.6,0.79028]
[1748699260204,3.99805,2529.7,2529.6,0.79028]
[1748699260796,3.2078,2529.7,2529.6,0.79028]
[1748699261706,0.1976,2529.9,2529.8,0.79021]
[1748699262008,0.1976,2529.9,2529.8,3.99801]
[1748699262300,0.1976,2529.9,2529.8,8.99801]
[1748699262505,0.00592991,2530.1,2530.0,0.79015]
[1748699262710,0.00592991,2530.1,2530.0,4.82415]
[1748699262906,0.00592991,2530.1,2530.0,6.13095]
[1748699263205,0.00592991,2530.1,2530.0,11.13095]
[1748699263414,1.41035,2530.7,2530.6,0.78996]
[1748699264007,3.2078,2530.8,2530.7,0.78993]
[1748699264508,3.2078,2530.8,2530.5,1.3295]
[1748699264707,0.78996,2530.6,2530.5,2.11947]
[1748699265512,0.98745,2530.7,2530.6,0.78997]
[1748699266106,0.1975,2530.7,2530.6,0.78997]
[1748699266610,0.1975,2530.7,2530.5,1.3295]
[1748699266611,0.78996,2530.6,2530.5,2.11949]
[1748699267217,0.78996,2530.6,2530.5,2.1195]
[1748699267708,0.98746,2530.7,2530.5,2.1195]
[1748699268018,0.78996,2530.6,2530.5,2.1195]
[1748699268816,0.98744,2530.7,2530.6,0.78996]
[1748699269017,0.98746,2530.7,2530.6,0.78996]
[1748699269820,0.78996,2530.6,2530.5,0.78998]
[1748699270419,2.33745,2530.7,2530.6,0.78996]
[1748699270717,2.33745,2530.7,2530.6,0.86151339]
[1748699271118,0.98745,2530.7,2530.6,0.86151339]
[1748699272718,0.98745,2530.7,2530.6,0.07155339]
[1748699275415,0.79015,2530.0,2529.9,1.9935]
[1748699275815,0.79014,2530.1,2530.0,0.79013]
[1748699276209,0.79014,2530.1,2530.0,2.11863]
[1748699276411,0.79015,2530.0,2529.9,1.45516]
[1748699276711,0.79018,2529.9,2529.8,0.00592991]
[1748699277215,0.79018,2529.9,2529.8,0.79613991]
[1748699277718,2.69638,2530.0,2529.9,0.79018]
[1748699279614,1.9062,2530.0,2529.8,0.00592991]
[1748699279820,0.79018,2529.9,2529.8,0.79610991]
[1748699280020,0.79018,2529.9,2529.8,0.00592991]
[1748699280218,2.10078,2529.9,2529.8,0.00592991]
[1748699280722,2.10078,2529.9,2529.8,0.79613991]
[1748699280921,1.3106,2529.9,2529.8,0.79613991]
[1748699281321,2.10078,2529.9,2529.8,0.00592991]
[1748699281730,0.79037,2529.3,2529.2,0.6264]
[1748699282223,0.79037,2529.3,2529.2,1.41678]
[1748699282422,0.7904,2529.2,2529.1,3.99822]
[1748699283125,0.79043,2529.1,2529.0,2.14445]
[1748699283520,0.7904,2529.3,2529.2,0.79039]
[1748699284122,1.24482991,2529.4,2529.2,0.79039]
[1748699284325,0.00592991,2529.4,2529.3,3.99817]
[1748699284527,3.2078,2529.9,2529.8,0.79021]
[1748699284720,3.2078,2529.9,2529.8,0.86176339]
[1748699287731,3.99798,2529.9,2529.8,0.86176339]
[1748699287925,3.99798,2529.9,2529.8,0.07155339]
[1748699288122,5.28308,2529.9,2529.8,0.07155339]
[1748699291631,5.28308,2529.9,2529.8,0.86176339]
[1748699292225,0.1976,2530.0,2529.9,0.79018]
[1748699292426,0.1976,2530.0,2529.9,2.70888]
[1748699292725,0.1976,2530.0,2529.9,3.39088]
[1748699292922,0.00592991,2530.1,2530.0,0.79015]
[1748699293133,0.78995,2530.7,2530.6,0.78995]
[1748699293331,0.78995,2530.7,2530.6,0.78996]
[1748699294143,0.78994,2530.7,2530.6,0.78994]
[1748699294431,0.78998,2530.6,2530.5,0.78998]
[1748699294632,0.78995,2530.7,2530.6,0.78996]
[1748699294932,1.31052991,2530.9,2530.7,0.78993]
[1748699295134,0.7899,2530.8,2530.7,0.78993]
[1748699295434,0.78991,2530.8,2530.7,0.78991]
[1748699295732,0.78994,2530.7,2530.6,0.78994]
[1748699296835,0.78993,2530.8,2530.7,0.78993]
[1748699297036,3.56291991,2530.9,2530.8,0.7899]
[1748699297237,0.78992,2530.8,2530.7,0.78992]
[1748699297534,0.78995,2530.7,2530.6,0.78996]
[1748699298232,0.20342991,2530.9,2530.5,1.9703]
[1748699298436,0.78992,2530.8,2530.7,0.78993]
[1748699299234,0.99331991,2530.9,2530.8,0.7899]
[1748699299736,0.78992,2530.8,2530.7,0.78992]
[1748699300533,0.20342991,2530.9,2530.5,1.9703]
[1748699300736,0.78991,2530.8,2530.7,0.78991]
[1748699300936,0.99331991,2530.9,2530.8,0.7899]
[1748699301138,0.99329991,2530.9,2530.8,0.7899]
[1748699301438,0.78992,2530.8,2530.7,0.78992]
[1748699302143,0.78993,2530.7,2530.6,0.07155339]
[1748699302928,3.99773,2530.7,2530.6,0.07155339]
[1748699303129,5.28143,2530.7,2530.6,0.07155339]
[1748699303532,3.99773,2530.7,2530.6,0.86151339]
[1748699303736,3.99773,2530.7,2530.6,0.07155339]
[1748699303930,3.2078,2530.7,2530.6,0.86151339]
[1748699304633,3.99773,2530.7,2530.6,0.07155339]
[1748699305336,0.78993,2530.7,2530.6,0.07155339]
[1748699305539,0.20342991,2530.9,2530.6,0.07155339]
[1748699305736,0.99331991,2530.9,2530.8,0.7899]
[1748699306340,0.7899,2530.8,2530.7,1.45151]
[1748699306531,0.99331991,2530.9,2530.8,0.7899]
[1748699307738,0.7899,2530.8,2530.7,1.45151]
[1748699308037,0.99331991,2530.9,2530.8,0.7899]
[1748699308237,0.20342991,2530.9,2530.8,0.7899]
[1748699308838,0.99329991,2530.9,2530.8,0.7899]
[1748699311239,0.7899,2530.8,2530.7,1.45151]
[1748699312238,0.99331991,2530.9,2530.8,0.7899]
[1748699312843,0.20342991,2530.9,2530.8,0.7899]
[1748699313035,0.99329991,2530.9,2530.8,0.7899]
[1748699313642,0.20342991,2530.9,2530.8,0.7899]
[1748699314743,0.99329991,2530.9,2530.8,0.7899]
[1748699315743,0.20342991,2530.9,2530.8,2.0391]
[1748699319244,5.94889,2532.0,2531.0,1.9746]
[1748699319444,22.79741,2531.9,2531.5,0.78967]
[1748699319642,0.7897,2531.5,2531.4,0.7897]
[1748699319939,0.7897,2531.5,2531.4,2.0859]
[1748699320339,0.78965,2531.6,2531.4,2.0859]
[1748699320540,0.0038864,2531.7,2531.3,3.2078]
[1748699320740,3.99752,2531.4,2531.1,0.78979]
[1748699320943,1.2455,2531.3,2531.1,0.78979]
[1748699321141,2.0787,2531.3,2531.2,0.78978]
[1748699323343,0.1927,2531.3,2531.2,0.78978]
[1748699323544,0.1927,2531.3,2531.2,2.02288]
[1748699324452,0.1927,2531.3,2531.2,0.78978]
[1748699324941,2.1324,2531.3,2531.2,0.78978]
[1748699328947,2.1324,2531.3,2531.1,3.2078]
[1748699329149,0.78984,2531.0,2530.9,3.14169262]
[1748699329343,0.78983,2531.1,2530.9,3.93156262]
[1748699329649,0.6184,2531.2,2531.1,0.78981]
[1748699329852,2.72138,2531.2,2531.0,0.78982]
[1748699330648,2.7214,2531.2,2531.0,0.78984]
[1748699331354,0.78981,2531.1,2530.9,0.78985]
[1748699331545,2.11101,2531.1,2530.9,0.78985]
[1748699331950,1.3212,2531.1,2531.0,0.78984]
[1748699333045,0.6184,2531.2,2531.1,0.78981]
[1748699333245,0.8389,2531.3,2531.2,0.78978]
[1748699333446,0.1927,2531.3,2531.2,0.86133339]
[1748699333947,0.1927,2531.3,2531.2,1.53383339]
[1748699336456,0.0038864,2531.7,2531.6,0.78965]
[1748699337356,3.2078,2532.3,2531.9,0.78953]
[1748699337657,0.78948,2532.2,2531.9,0.78953]
[1748699337954,1.2434,2532.2,2532.0,0.78951]
[1748699338256,2.03288,2532.2,2532.0,0.78951]
[1748699338461,1.2434,2532.2,2531.9,0.78953]
[1748699339457,2.03289,2532.2,2531.9,0.78953]
[1748699339664,0.78951,2532.1,2531.8,4.00330991]
[1748699339955,1.2434,2532.0,2531.9,0.78956]
[1748699340155,1.8654,2532.0,2531.9,0.78956]
[1748699340654,0.78956,2531.9,2531.8,0.00592991]
[1748699340861,2.08906,2531.9,2531.8,0.00592991]
[1748699341057,2.71336,2531.9,2531.8,0.00592991]
[1748699342556,1.9238,2531.9,2531.8,0.79551991]
[1748699342754,2.71336,2531.9,2531.8,0.00592991]
[1748699342954,1.9238,2531.9,2531.8,0.79551991]
[1748699343759,2.71336,2531.9,2531.8,0.00592991]
[1748699344853,1.9238,2531.9,2531.8,0.79551991]
[1748699345660,1.9238,2531.9,2531.8,0.8670733]
[1748699346064,2.71336,2531.9,2531.8,0.0774833]
[1748699346756,1.9238,2531.9,2531.8,0.8670733]
[1748699346960,0.622,2532.0,2531.9,0.78956]
[1748699347164,20.42598,2532.2,2532.0,0.78951]
[1748699347458,20.42599,2532.2,2532.0,0.78951]
[1748699348361,0.7895,2532.1,2531.9,2.15654]
[1748699348760,0.7895,2532.1,2531.9,1.367]
[1748699348958,0.7895,2532.1,2531.9,2.15653]
[1748699349662,19.6365,2532.2,2531.9,2.15653]
[1748699349863,0.78953,2532.0,2531.9,2.15653]
[1748699350063,0.78952,2532.1,2531.9,2.15653]
[1748699350363,19.6365,2532.2,2531.8,0.0774833]
[1748699350551,0.78956,2531.9,2531.8,0.0774833]
[1748699351063,12.4481476,2531.9,2531.1,3.2078]
[1748699351253,12.4481476,2531.9,2531.1,1.9833]
[1748699351254,0.78969,2531.5,2531.1,1.9833]
[1748699351450,0.78969,2531.5,2531.2,1.3542]
[1748699351664,3.2078,2531.7,2531.4,0.78971]
[1748699351665,0.78968,2531.6,2531.4,0.78971]
[1748699351958,0.78972,2531.4,2531.3,0.78973]
[1748699352257,0.78978,2531.2,2531.1,0.00592991]
[1748699352856,2.06908,2531.2,2531.1,0.00592991]
[1748699354559,2.73198,2531.2,2531.1,0.00592991]
[1748699356666,7.73198,2531.2,2531.1,0.00592991]
[1748699357461,0.78985,2531.0,2530.6,1.3009]
[1748699357762,0.78985,2531.0,2530.8,0.7899]
[1748699358265,2.06345,2531.0,2530.8,0.7899]
[1748699358568,20.33847,2531.0,2530.7,0.78993]
[1748699358867,0.78993,2530.7,2530.6,0.00592991]
[1748699359063,0.78993,2530.8,2530.6,0.79587991]
[1748699359458,0.78993,2530.7,2530.6,0.79587991]
[1748699359767,0.78993,2530.7,2530.6,0.00592991]
[1748699360763,9.76293,2530.7,2530.6,0.00592991]
[1748699361363,11.04023,2530.7,2530.6,0.00592991]
[1748699361558,0.79012,2530.1,2530.0,5.80269262]
[1748699361764,0.79012,2530.1,2530.0,3.14169262]
[1748699362159,0.79012,2530.1,2530.0,0.79015]
[1748699362364,2.10812,2530.1,2529.9,0.79016]
[1748699362758,2.10812,2530.1,2530.0,0.79015]
[1748699363162,2.10812,2530.1,2529.8,1.2333]
[1748699363368,0.79016,2530.0,2529.9,0.79017]
[1748699363666,0.79016,2530.0,2529.9,0.79018]
[1748699363874,0.79016,2530.0,2529.8,2.02349]
[1748699364073,1.318,2530.1,2529.8,1.2333]
[1748699364274,0.79022,2529.8,2529.7,3.87672991]
[1748699364662,0.79018,2529.9,2529.7,4.66697991]
[1748699364962,0.79022,2529.8,2529.7,0.00592991]
[1748699365874,2.12802,2529.8,2529.7,0.00592991]
[1748699368963,0.79022,2529.8,2529.7,0.00592991]
[1748699372465,19.07222,2529.8,2529.7,0.00592991]
[1748699372666,0.79022,2529.8,2529.7,0.68502991]
[1748699372866,0.1976,2530.0,2529.9,0.79018]
[1748699373462,0.1976,2530.0,2529.9,2.14368]
[1748699374069,0.00592991,2530.3,2530.2,0.79009]
[1748699375273,0.00592991,2530.3,2530.2,1.44539]
[1748699378069,0.00592991,2530.3,2530.2,6.44539]
[1748699378269,0.78993,2530.8,2530.6,0.78994]
[1748699378471,0.78993,2530.8,2530.7,1.8759]
[1748699379072,4.76289,2530.9,2530.7,2.66583]
[1748699379273,4.76287,2530.9,2530.8,1.2503]
[1748699381379,0.7899,2530.8,2530.7,0.6256]
[1748699381767,1.97477,2530.8,2530.2,3.99787]
[1748699382074,0.79006,2530.3,2530.2,5.91097]
[1748699382277,0.79006,2530.3,2530.2,5.1209]
[1748699382779,0.79012,2530.1,2530.0,0.6776]
[1748699383274,5.18294,2530.4,2529.8,1.9742]
[1748699383275,0.79018,2529.9,2529.8,1.9742]